fUSD/lending_fUSD_20240109
["ID","MTS","AMOUNT","RATE_DAILY","PERIOD"]
[310932204,1704822718389,-500.0,0.0004126,30]
[310932205,1704822718399,-500.0,0.0004126,30]
[310932206,1704822718408,-16320.88,0.0004126,30]
[310932207,1704822718418,-500.0,0.0004126,30]
[310932208,1704822718428,-1461.1,0.0004126,30]
[310932209,1704822718437,-1023.83,0.0004126,30]
[310932210,1704822718446,-1480.8,0.0004126,30]
[310932211,1704822718455,-500.0,0.0004126,30]
[310932212,1704822718464,-1217.56,0.0004126,30]
[310932213,1704822718475,-500.0,0.0004126,30]
[310932214,1704822718485,-441.12957306,0.0004126,30]
[310932215,1704822718495,-500.0,0.0004126,30]
[310932216,1704822718505,-535.12,0.0004126,30]
[310932217,1704822718516,-502.98,0.0004126,30]
[310932218,1704822718525,-2134.28,0.0004126,30]
[310932219,1704822718535,-28536.06,0.0004126,30]
[310932220,1704822718545,-562.7,0.0004126,30]
[310932221,1704822718554,-1487.63,0.0004126,30]
[310932222,1704822718564,-500.0,0.0004126,30]
[310932223,1704822718573,-500.0,0.0004126,30]
[310932224,1704822718583,-20736.0,0.0004126,30]
[310932225,1704822718592,-1740.94,0.0004126,30]
[310932226,1704822718602,-692.37,0.0004126,30]
[310932227,1704822718611,-500.0,0.0004126,7]
[310932228,1704822718621,-500.0,0.0004126,30]
[310932229,1704822718630,-520.83,0.0004126,30]
[310932230,1704822718640,-519.93728559,0.0004126,30]
[310932231,1704822718649,-500.0,0.0004126,30]
[310932232,1704822718658,-1611.71,0.0004126,30]
[310932233,1704822718667,-2765.97,0.0004126,30]
[310932234,1704822718676,-507.35960857,0.0004126,30]
[310932235,1704822718686,-1717.39,0.0004126,30]
[310932236,1704822718695,-609.42,0.0004126,30]
[310932237,1704822718705,-2773.47,0.0004126,30]
[310932238,1704822718715,-500.0,0.0004126,30]
[310932239,1704822718727,-3238.34,0.0004126,30]
[310932240,1704822718737,-1398.9,0.0004126,30]
[310932241,1704822718746,-500.0,0.0004126,30]
[310932242,1704822718756,-500.0,0.0004126,30]
[310932243,1704822718765,-7172.21,0.0004126,30]
[310932244,1704822718775,-923.42,0.0004126,30]
[310932245,1704822718783,-500.0,0.0004126,30]
[310932246,1704822718793,-788.36,0.0004126,30]
[310932247,1704822718803,-931.8,0.0004126,7]
[310932248,1704822718813,-500.0,0.0004126,30]
[310932249,1704822718822,-500.0,0.0004126,30]
[310932250,1704822718832,-809.83,0.0004126,30]
[310932251,1704822718842,-500.0,0.0004126,30]
[310932252,1704822718851,-609.54237732,0.0004126,30]
[310932253,1704822718861,-500.0,0.0004126,30]
[310932254,1704822718870,-5265.67,0.0004126,30]
[310932255,1704822718880,-524.72,0.0004126,30]
[310932256,1704822718890,-870.53,0.0004126,30]
[310932257,1704822718899,-500.0,0.0004126,30]
[310932258,1704822718909,-500.0,0.0004126,30]
[310932259,1704822718918,-500.0,0.0004126,30]
[310932260,1704822718928,-1008.96,0.0004126,30]
[310932261,1704822718937,-850.11,0.0004126,30]
[310932262,1704822718947,-1779.89,0.0004126,30]
[310932263,1704822718956,-3021.98,0.0004126,30]
[310932264,1704822718966,-1545.97,0.0004126,30]
[310932265,1704822718977,-757.38,0.0004126,30]
[310932266,1704822718986,-500.0,0.0004126,30]
[310932267,1704822718996,-500.0,0.0004126,30]
[310932268,1704822719005,-1007.59,0.0004126,30]
[310932269,1704822719014,-648.78,0.0004126,30]
[310932270,1704822719024,-535.37,0.0004126,30]
[310932271,1704822719033,-1272.45,0.0004126,30]
[310932272,1704822719043,-500.0,0.0004126,30]
[310932273,1704822719052,-500.0,0.0004126,30]
[310932274,1704822719062,-500.0,0.0004126,30]
[310932275,1704822719071,-570.46833052,0.0004126,30]
[310932276,1704822719080,-500.0,0.0004126,30]
[310932277,1704822719091,-1977.41,0.0004126,30]
[310932278,1704822719100,-3559.33,0.0004126,30]
[310932279,1704822719110,-500.0,0.0004126,30]
[310932280,1704822719119,-500.0,0.0004126,30]
[310932281,1704822719128,-500.0,0.0004126,30]
[310932282,1704822719137,-6393.45,0.0004126,30]
[310932283,1704822719147,-1626.03,0.0004126,30]
[310932284,1704822719157,-500.0,0.0004126,30]
[310932285,1704822719166,-500.0,0.0004126,30]
[310932286,1704822719175,-3116.26,0.0004126,30]
[310932287,1704822719184,-1812.16,0.0004126,30]
[310932288,1704822719193,-6814.69,0.0004126,30]
[310932289,1704822719202,-1864.75,0.0004126,30]
[310932290,1704822719211,-551.97,0.0004126,30]
[310932291,1704822719221,-500.0,0.0004126,30]
[310932292,1704822719231,-500.0,0.0004126,30]
[310932293,1704822719240,-897.99,0.0004126,30]
[310932294,1704822719249,-694.55,0.0004126,30]
[310932295,1704822719258,-903.52,0.0004126,30]
[310932296,1704822719267,-500.0,0.0004126,30]
[310932297,1704822719276,-500.0,0.0004126,30]
[310932298,1704822719286,-11065.11,0.0004126,30]
[310932299,1704822719295,-500.0,0.0004126,30]
[310932300,1704822719304,-3610.81,0.0004126,30]
[310932301,1704822719315,-1400.92,0.0004126,30]
[310932302,1704822719324,-500.0,0.0004126,30]
[310932303,1704822719334,-2625.62,0.0004126,30]
[310932304,1704822719348,-500.0,0.0004126,30]
[310932305,1704822719357,-5058.68,0.0004126,30]
[310932306,1704822719367,-25209.06,0.0004126,30]
[310932307,1704822719385,-637.53,0.0004126,30]
[310932308,1704822719394,-608.76,0.0004126,30]
[310932309,1704822719404,-500.0,0.0004126,30]
[310932310,1704822719413,-1756.5,0.0004126,30]
[310932311,1704822719422,-500.0,0.0004126,30]
[310932312,1704822719432,-500.0,0.0004126,30]
[310932313,1704822719442,-4417.44,0.0004126,30]
[310932314,1704822719452,-4168.56,0.0004126,30]
[310932315,1704822719462,-1928.23,0.0004126,30]
[310932316,1704822719472,-500.0,0.0004126,30]
[310932317,1704822719482,-1650.82,0.0004126,30]
[310932318,1704822719498,-936.15,0.0004126,30]
[310932319,1704822719508,-500.0,0.0004126,30]
[310932320,1704822719517,-500.0,0.0004126,30]
[310932321,1704822719527,-500.0,0.0004126,30]
[310932322,1704822719537,-506.37161307,0.0004126,30]
[310932323,1704822719546,-1403.88,0.0004126,30]
[310932324,1704822719556,-1040.11,0.0004126,30]
[310932325,1704822719565,-988.86,0.0004126,30]
[310932326,1704822719574,-2066.79,0.0004126,30]
[310932327,1704822719583,-563.04,0.0004126,30]
[310932328,1704822719593,-769.02,0.0004126,30]
[310932329,1704822719602,-500.0,0.0004126,30]
[310932330,1704822719611,-747.93,0.0004126,30]
[310932331,1704822719621,-3874.24,0.0004126,30]
[310932332,1704822719630,-3735.85,0.0004126,30]
[310932333,1704822719639,-560.91814583,0.0004126,30]
[310932334,1704822719648,-500.0,0.0004126,30]
[310932335,1704822719658,-502.7,0.0004126,30]
[310932336,1704822719667,-1875.85,0.0004126,30]
[310932337,1704822719676,-236.24938328,0.0004126,30]
[310932338,1704822719685,-405.47602172,0.0004126,30]
[310932339,1704822719694,-6107.8,0.0004126,30]
[310932340,1704822719703,-1726.91,0.0004126,30]
[310932341,1704822719712,-3911.7,0.0004126,30]
[310932342,1704822719721,-914.17,0.0004126,30]
[310932343,1704822719731,-500.0,0.0004126,30]
[310932344,1704822719740,-500.0,0.0004126,30]
[310932345,1704822719749,-500.0,0.0004126,30]
[310932346,1704822719758,-500.0,0.0004126,30]
[310932347,1704822719767,-500.0,0.0004126,30]
[310932348,1704822719776,-1131.67,0.0004126,30]
[310932349,1704822719786,-2215.92,0.0004126,30]
[310932350,1704822719795,-500.0,0.0004126,7]
[310932351,1704822719803,-3733.8,0.0004126,30]
[310932352,1704822719813,-1796.89,0.0004126,30]
[310932353,1704822719826,-1512.92,0.0004126,30]
[310932354,1704822719841,-2353.53,0.0004126,30]
[310932355,1704822719854,-1528.15,0.0004126,30]
[310932356,1704822719866,-4688.93,0.0004126,30]
[310932357,1704822719879,-2618.04,0.0004126,30]
[310932358,1704822719892,-4825.11,0.0004126,30]
[310932359,1704822719906,-2560.7,0.0004126,30]
[310932360,1704822719921,-519.71,0.0004126,30]
[310932361,1704822719933,-500.0,0.0004126,15]
[310932362,1704822719945,-2121.56,0.0004126,30]
[310932363,1704822719960,-500.0,0.0004126,30]
[310932364,1704822719972,-500.0,0.0004126,30]
[310932365,1704822719984,-23952.72,0.0004126,30]
[310932366,1704822719999,-1303.54,0.0004126,30]
[310932367,1704822720012,-2435.46,0.0004126,30]
[310932368,1704822720023,-500.0,0.0004126,30]
[310932369,1704822720037,-752.79,0.0004126,30]
[310932370,1704822720052,-500.0,0.0004126,30]
[310932371,1704822720066,-536.41973218,0.0004126,30]
[310932372,1704822720078,-847.62,0.0004126,30]
[310932373,1704822720091,-500.0,0.0004126,30]
[310932374,1704822720107,-689.54,0.0004126,30]
[310932375,1704822720121,-7922.58,0.0004126,30]
[310932376,1704822720135,-2584.24,0.0004126,30]
[310932377,1704822720148,-947.91,0.0004126,30]
[310932378,1704822720160,-592.01691206,0.0004126,30]
[310932379,1704822720172,-2075.66,0.0004126,30]
[310932380,1704822720186,-500.0,0.0004126,30]
[310932381,1704822720199,-846.93,0.0004126,30]
[310932382,1704822720216,-525.60049975,0.0004126,30]
[310932383,1704822720230,-6851.14,0.0004126,30]
[310932384,1704822720242,-3535.22,0.0004126,30]
[310932385,1704822720259,-2262.47,0.0004126,30]
[310932386,1704822720273,-766.2,0.0004126,30]
[310932387,1704822720286,-2095.74,0.0004126,30]
[310932388,1704822720301,-4048.91,0.0004126,30]
[310932389,1704822720316,-5660.14,0.0004126,30]
[310932390,1704822720330,-629.69,0.0004126,30]
[310932391,1704822720345,-204.78414331,0.0004126,30]
[310932392,1704822720361,-510.00450189,0.0004126,30]
[310932393,1704822720375,-533.62,0.0004126,30]
[310932394,1704822720390,-543.66138076,0.0004126,30]
[310932395,1704822720404,-500.0,0.0004126,30]
[310932396,1704822720418,-773.42,0.0004126,30]
[310932397,1704822720430,-1632.87,0.0004126,30]
[310932398,1704822720442,-2323.31,0.0004126,30]
[310932399,1704822720455,-516.98,0.0004126,30]
[310932400,1704822720468,-2208.88,0.0004126,30]
[310932401,1704822720483,-687.15,0.0004126,30]
[310932402,1704822720498,-641.49,0.0004126,30]
[310932403,1704822720510,-11260.39,0.0004126,30]
[310932404,1704822720524,-5222.0,0.0004126,30]
[310932405,1704822720537,-720.42,0.0004126,30]
[310932406,1704822720550,-909.51,0.0004126,30]
[310932407,1704822720563,-1861.66,0.0004126,30]
[310932408,1704822720576,-500.0,0.0004126,30]
[310932409,1704822720589,-500.0,0.0004126,30]
[310932410,1704822720602,-2706.98,0.0004126,30]
[310932411,1704822720615,-1000.0,0.0004126,30]
[310932412,1704822720628,-892.91,0.0004126,30]
[310932413,1704822720641,-873.72,0.0004126,30]
[310932414,1704822720654,-500.0,0.0004126,30]
[310932415,1704822720667,-5255.79,0.0004126,30]
[310932416,1704822720680,-877.85,0.0004126,30]
[310932417,1704822720693,-500.0,0.0004126,30]
[310932418,1704822720707,-2821.26,0.0004126,30]
[310932419,1704822720719,-500.0,0.0004126,30]
[310932420,1704822720732,-500.0,0.0004126,30]
[310932421,1704822720745,-5683.38,0.0004126,30]
[310932422,1704822720758,-500.0,0.0004126,30]
[310932423,1704822720771,-500.0,0.0004126,30]
[310932424,1704822720784,-2549.41,0.0004126,30]
[310932425,1704822720797,-2896.34,0.0004126,30]
[310932426,1704822720809,-500.0,0.0004126,30]
[310932427,1704822720822,-4548.33,0.0004126,30]
[310932428,1704822720834,-2314.18,0.0004126,30]
[310932429,1704822720847,-500.0,0.0004126,30]
[310932430,1704822720859,-576.90169178,0.0004126,30]
[310932431,1704822720871,-2089.66,0.0004126,30]
[310932432,1704822720882,-606.99,0.0004126,30]
[310932433,1704822720894,-641.77,0.0004126,30]
[310932434,1704822720906,-500.0,0.0004126,30]
[310932435,1704822720918,-3012.02,0.0004126,30]
[310932436,1704822720930,-2874.45,0.0004126,30]
[310932437,1704822720943,-847.35,0.0004126,30]
[310932438,1704822720955,-4927.93,0.0004126,30]
[310932439,1704822720967,-1016.59,0.0004126,30]
[310932440,1704822720981,-500.0,0.0004126,30]
[310932441,1704822720993,-3470.52,0.0004126,30]
[310932442,1704822721006,-1577.99,0.0004126,30]
[310932443,1704822721019,-500.0,0.0004126,30]
[310932444,1704822721031,-500.0,0.0004126,30]
[310932445,1704822721043,-516.20086821,0.0004126,30]
[310932446,1704822721055,-1414.19,0.0004126,30]
[310932447,1704822721067,-2293.4,0.0004126,30]
[310932448,1704822721079,-500.0,0.0004126,30]
[310932449,1704822721092,-500.0,0.0004126,30]
[310932450,1704822721104,-500.0,0.0004126,30]
[310932451,1704822721117,-1523.26,0.0004126,30]
[310932452,1704822721128,-500.0,0.0004126,30]
[310932453,1704822721140,-500.0,0.0004126,30]
[310932454,1704822721152,-5553.45,0.0004126,30]
[310932455,1704822721163,-1021.68,0.0004126,30]
[310932456,1704822721175,-500.0,0.0004126,30]
[310932457,1704822721188,-1073.92,0.0004126,30]
[310932458,1704822721200,-500.0,0.0004126,30]
[310932459,1704822721212,-1321.2,0.0004126,30]
[310932460,1704822721224,-500.0,0.0004126,30]
[310932461,1704822721237,-500.0,0.0004126,30]
[310932462,1704822721250,-500.0,0.0004126,30]
[310932463,1704822721261,-500.0,0.0004126,30]
[310932464,1704822721274,-5163.1,0.0004126,30]
[310932465,1704822721286,-1629.25,0.0004126,30]
[310932466,1704822721298,-500.0,0.0004126,30]
[310932467,1704822721309,-500.0,0.0004126,30]
[310932468,1704822721320,-2550.91,0.0004126,30]
[310932469,1704822721331,-857.66,0.0004126,30]
[310932470,1704822721343,-658.7,0.0004126,30]
[310932471,1704822721354,-644.1,0.0004126,30]
[310932472,1704822721366,-1296.82,0.0004126,30]
[310932473,1704822721377,-2556.57,0.0004126,30]
[310932474,1704822721389,-500.0,0.0004126,30]
[310932475,1704822721401,-671.14,0.0004126,30]
[310932476,1704822721412,-10320.38,0.0004126,30]
[310932477,1704822721424,-4084.77,0.0004126,30]
[310932478,1704822721436,-500.0,0.0004126,30]
[310932479,1704822721447,-2049.37,0.0004126,30]
[310932480,1704822721459,-2187.0,0.0004129,3]
[310932481,1704822721471,-5734.33554511,0.000413,7]
[310932482,1704822721487,-400.0,0.000413,100]
[310932483,1704822721497,-4594.61,0.00041342,5]
[310932484,1704822721513,-312.69618193,0.00041342,2]
[310932485,1704822721526,-500.0,0.00041342,30]
[310932486,1704822721539,-500.0,0.00041342,30]
[310932487,1704822721551,-500.0,0.00041342,30]
[310932488,1704822721564,-500.0,0.00041342,30]
[310932489,1704822721577,-528.04106597,0.00041342,30]
[310932490,1704822721590,-500.0,0.00041342,30]
[310932491,1704822721602,-500.0,0.00041342,30]
[310932492,1704822721613,-500.0,0.00041342,30]
[310932493,1704822721625,-500.0,0.00041342,30]
[310932494,1704822721637,-500.0,0.00041342,30]
[310932495,1704822721650,-500.0,0.00041342,30]
[310932496,1704822721662,-501.07712075,0.00041342,30]
[310932497,1704822721674,-500.0,0.00041342,2]
[310932498,1704822721687,-500.0,0.00041342,30]
[310932499,1704822721699,-500.0,0.00041342,30]
[310932500,1704822721711,-500.0,0.00041342,30]
[310932501,1704822721723,-500.0,0.00041342,30]
[310932502,1704822721736,-500.0,0.00041342,30]
[310932503,1704822721747,-807.49,0.00041342,30]
[310932504,1704822721759,-1064.88,0.00041342,30]
[310932505,1704822721771,-504.18,0.00041342,30]
[310932506,1704822721782,-500.0,0.00041342,30]
[310932507,1704822721794,-500.0,0.00041342,30]
[310932508,1704822721806,-1384.92,0.00041342,30]
[310932509,1704822721818,-165.23368045,0.00041342,30]
[310932510,1704822721830,-500.0,0.00041342,30]
[310932511,1704822721842,-1040.33,0.00041342,30]
[310932512,1704822721854,-500.0,0.00041342,30]
[310932513,1704822721866,-678.56,0.00041342,30]
[310932514,1704822721877,-500.0,0.00041342,30]
[310932515,1704822721888,-500.0,0.00041342,30]
[310932516,1704822721900,-500.0,0.00041342,30]
[310932517,1704822721911,-500.0,0.00041342,30]
[310932518,1704822721922,-1183.13,0.00041342,30]
[310932519,1704822721934,-500.0,0.00041342,2]
[310932520,1704822721945,-500.0,0.00041342,30]
[310932521,1704822721957,-500.0,0.00041342,30]
[310932522,1704822721968,-500.0,0.00041342,30]
[310932523,1704822721980,-500.0,0.00041342,30]
[310932524,1704822721992,-500.0,0.00041342,30]
[310932525,1704822722003,-451.38366709,0.00041342,30]
[310932526,1704822722015,-500.0,0.00041342,30]
[310932527,1704822722026,-500.0,0.00041342,30]
[310932528,1704822722037,-500.0,0.00041342,30]
[310932529,1704822722049,-500.0,0.00041342,30]
[310932530,1704822722061,-500.0,0.00041342,30]
[310932531,1704822722073,-221.54965925,0.00041342,30]
[310932532,1704822722085,-500.0,0.00041342,30]
[310932533,1704822722096,-500.0,0.00041342,30]
[310932534,1704822722108,-500.0,0.00041342,30]
[310932535,1704822722120,-500.0,0.00041342,30]
[310932536,1704822722131,-500.0,0.00041342,30]
[310932537,1704822722151,-500.0,0.00041342,30]
[310932538,1704822722162,-848.16,0.00041342,30]
[310932539,1704822722173,-500.0,0.00041342,30]
[310932540,1704822722184,-996.71,0.00041342,30]
[310932541,1704822722195,-582.4,0.00041342,30]
[310932542,1704822722207,-500.0,0.00041342,30]
[310932543,1704822722217,-500.0,0.00041342,30]
[310932544,1704822722229,-500.0,0.00041342,30]
[310932545,1704822722240,-346.49842828,0.00041342,30]
[310932546,1704822722251,-500.0,0.00041342,30]
[310932547,1704822722263,-500.0,0.00041342,30]
[310932548,1704822722274,-500.0,0.00041342,30]
[310932549,1704822722285,-500.0,0.00041342,30]
[310932550,1704822722297,-500.0,0.00041342,30]
[310932551,1704822722308,-763.12,0.00041342,30]
[310932552,1704822722319,-500.0,0.00041342,30]
[310932553,1704822722330,-500.0,0.00041342,30]
[310932554,1704822722341,-500.0,0.00041342,30]
[310932555,1704822722353,-629.14,0.00041342,2]
[310932556,1704822722364,-500.0,0.00041342,30]
[310932557,1704822722376,-500.0,0.00041342,30]
[310932558,1704822722387,-500.0,0.00041342,30]
[310932559,1704822722398,-500.0,0.00041342,30]
[310932560,1704822722409,-500.0,0.00041342,30]
[310932561,1704822722421,-500.0,0.00041342,30]
[310932562,1704822722433,-500.0,0.00041342,30]
[310932563,1704822722444,-668.65,0.00041342,30]
[310932564,1704822722455,-823.05,0.00041342,30]
[310932565,1704822722466,-500.0,0.00041342,30]
[310932566,1704822722477,-500.0,0.00041342,30]
[310932567,1704822722490,-500.0,0.00041342,30]
[310932568,1704822722502,-500.0,0.00041342,30]
[310932569,1704822722513,-500.0,0.00041342,30]
[310932570,1704822722524,-500.0,0.00041342,30]
[310932571,1704822722535,-500.0,0.00041342,30]
[310932572,1704822722546,-598.14702082,0.00041342,30]
[310932573,1704822722559,-217.20589834,0.00041342,30]
[310932574,1704822722570,-500.0,0.00041342,30]
[310932575,1704822722581,-500.0,0.00041342,30]
[310932576,1704822722593,-723.9,0.00041342,30]
[310932577,1704822722604,-782.81,0.00041342,30]
[310932578,1704822722615,-500.0,0.00041342,30]
[310932579,1704822722626,-500.0,0.00041342,30]
[310932580,1704822722638,-500.0,0.00041342,30]
[310932581,1704822722649,-500.0,0.00041342,30]
[310932582,1704822722660,-969.63,0.00041342,30]
[310932583,1704822722670,-500.0,0.00041342,30]
[310932584,1704822722682,-500.0,0.00041342,30]
[310932585,1704822722693,-566.95,0.00041342,30]
[310932586,1704822722704,-500.0,0.00041342,30]
[310932587,1704822722716,-500.0,0.00041342,30]
[310932588,1704822722727,-500.0,0.00041342,30]
[310932589,1704822722739,-500.0,0.00041342,30]
[310932590,1704822722751,-500.0,0.00041342,30]
[310932591,1704822722762,-500.0,0.00041342,30]
[310932592,1704822722774,-500.0,0.00041342,30]
[310932593,1704822722785,-623.06,0.00041342,30]
[310932594,1704822722796,-500.0,0.00041342,30]
[310932595,1704822722808,-500.0,0.00041342,30]
[310932596,1704822722819,-516.99,0.00041342,30]
[310932597,1704822722830,-412.31122919,0.00041342,30]
[310932598,1704822722842,-500.0,0.00041342,30]
[310932599,1704822722853,-500.0,0.00041342,30]
[310932600,1704822722864,-500.0,0.00041342,30]
[310932601,1704822722875,-702.04,0.00041342,30]
[310932602,1704822722887,-500.0,0.00041342,30]
[310932603,1704822722898,-500.0,0.00041342,30]
[310932604,1704822722908,-500.0,0.00041342,30]
[310932605,1704822722920,-500.0,0.00041342,30]
[310932606,1704822722932,-500.0,0.00041342,30]
[310932607,1704822722943,-716.56,0.00041342,30]
[310932608,1704822722956,-500.0,0.00041342,15]
[310932609,1704822722967,-748.95,0.00041342,30]
[310932610,1704822722979,-500.0,0.00041342,30]
[310932611,1704822722990,-500.0,0.00041342,30]
[310932612,1704822723002,-500.0,0.00041342,30]
[310932613,1704822723013,-500.0,0.00041342,30]
[310932614,1704822723024,-500.0,0.00041342,30]
[310932615,1704822723035,-500.0,0.00041342,30]
[310932616,1704822723046,-672.74,0.00041342,30]
[310932617,1704822723057,-500.0,0.00041342,30]
[310932618,1704822723070,-500.0,0.00041342,30]
[310932619,1704822723081,-500.0,0.00041342,30]
[310932620,1704822723093,-500.0,0.00041342,30]
[310932621,1704822723104,-647.35,0.00041342,30]
[310932622,1704822723116,-533.15190813,0.00041342,30]
[310932623,1704822723127,-685.1,0.00041342,30]
[310932624,1704822723138,-500.0,0.00041342,30]
[310932625,1704822723149,-500.0,0.00041342,30]
[310932626,1704822723161,-1120.19,0.00041342,30]
[310932627,1704822723173,-500.0,0.00041342,30]
[310932628,1704822723184,-500.0,0.00041342,30]
[310932629,1704822723196,-500.0,0.00041342,30]
[310932630,1704822723207,-500.0,0.00041342,30]
[310932631,1704822723219,-552.67060424,0.00041342,30]
[310932632,1704822723230,-500.0,0.00041342,30]
[310932633,1704822723242,-565.95834719,0.00041342,30]
[310932634,1704822723254,-500.0,0.00041342,30]
[310932635,1704822723265,-522.35968893,0.00041342,30]
[310932636,1704822723277,-500.0,0.00041342,30]
[310932637,1704822723288,-500.0,0.00041342,30]
[310932638,1704822723300,-500.0,0.00041342,30]
[310932639,1704822723313,-500.0,0.00041342,30]
[310932640,1704822723326,-500.0,0.00041342,30]
[310932641,1704822723339,-647.58,0.00041342,30]
[310932642,1704822723353,-5000.0,0.00041342,30]
[310932643,1704822723366,-500.0,0.00041342,30]
[310932644,1704822723380,-500.0,0.00041342,30]
[310932645,1704822723394,-350.0,0.00041342,30]
[310932646,1704822723407,-500.0,0.00041342,30]
[310932647,1704822723420,-500.0,0.00041342,30]
[310932648,1704822723432,-500.0,0.00041342,30]
[310932649,1704822723445,-500.0,0.00041342,30]
[310932650,1704822723458,-500.0,0.00041342,30]
[310932651,1704822723472,-558.85,0.00041342,30]
[310932652,1704822723488,-742.86,0.00041342,30]
[310932653,1704822723501,-500.0,0.00041342,30]
[310932654,1704822723517,-500.0,0.00041342,30]
[310932655,1704822723532,-581.63,0.00041342,30]
[310932656,1704822723547,-500.0,0.00041342,30]
[310932657,1704822723561,-500.0,0.00041342,30]
[310932658,1704822723575,-807.83,0.00041342,30]
[310932659,1704822723589,-518.52713058,0.00041342,30]
[310932660,1704822723603,-500.0,0.00041342,30]
[310932661,1704822723616,-500.0,0.00041342,30]
[310932662,1704822723629,-500.0,0.00041342,30]
[310932663,1704822723643,-505.20894679,0.00041342,30]
[310932664,1704822723657,-500.0,0.00041342,30]
[310932665,1704822723671,-264.23177912,0.00041342,30]
[310932666,1704822723685,-500.0,0.00041342,30]
[310932667,1704822723698,-500.0,0.00041342,30]
[310932668,1704822723712,-500.0,0.00041342,30]
[310932669,1704822723724,-517.95,0.00041342,30]
[310932670,1704822723740,-500.0,0.00041342,30]
[310932671,1704822723754,-500.0,0.00041342,30]
[310932672,1704822723770,-500.0,0.00041342,30]
[310932673,1704822723783,-522.73557154,0.00041342,30]
[310932674,1704822723795,-632.05,0.00041342,30]
[310932675,1704822723808,-500.0,0.00041342,30]
[310932676,1704822723820,-500.0,0.00041342,30]
[310932677,1704822723832,-532.04457942,0.00041342,30]
[310932678,1704822723846,-500.0,0.00041342,30]
[310932679,1704822723860,-614.33010003,0.00041342,30]
[310932680,1704822723900,-500.0,0.00041342,30]
[310932681,1704822723914,-500.0,0.00041342,30]
[310932682,1704822723927,-500.0,0.00041342,30]
[310932683,1704822723940,-654.13,0.00041342,30]
[310932684,1704822723953,-899.39,0.00041342,30]
[310932685,1704822723966,-500.0,0.00041342,30]
[310932686,1704822723978,-500.0,0.00041342,30]
[310932687,1704822723996,-500.0,0.00041342,30]
[310932688,1704822724010,-500.0,0.00041342,30]
[310932689,1704822724023,-537.47,0.00041342,30]
[310932690,1704822724036,-500.0,0.00041342,30]
[310932691,1704822724049,-570.00643174,0.00041342,30]
[310932692,1704822724061,-500.0,0.00041342,30]
[310932693,1704822724074,-680.46,0.00041342,30]
[310932694,1704822724087,-532.21700017,0.00041342,30]
[310932695,1704822724100,-797.4,0.00041342,30]
[310932696,1704822724113,-500.0,0.00041342,7]
[310932697,1704822724127,-1018.51,0.00041342,30]
[310932698,1704822724139,-856.07,0.00041342,30]
[310932699,1704822724153,-500.0,0.00041342,30]
[310932700,1704822724167,-500.0,0.00041342,30]
[310932701,1704822724180,-315.65093409,0.00041342,30]
[310932702,1704822724193,-500.0,0.00041342,30]
[310932703,1704822724206,-500.0,0.00041342,30]